fUST/lending_fUST_20250628
["ID","MTS","AMOUNT","RATE_DAILY","PERIOD"]
[368198538,1751057440701,-460.0,0.00019178,2]
[368198539,1751057440712,-2973.32,0.00019178,2]
[368198540,1751057440722,-460.0,0.00019178,2]
[368198541,1751057440732,-460.0,0.00019178,2]
[368198542,1751057440742,-500.0,0.00019178,2]
[368198543,1751057440753,-460.0,0.00019178,2]
[368198544,1751057440763,-500.0,0.00019178,2]
[368198545,1751057440773,-1517.0,0.00019178,2]
[368198546,1751057440784,-3468.68,0.00019178,2]
[368198547,1751057440799,-383.05217582,0.00019178,2]
[368198548,1751057440810,-1615.82,0.00019178,2]
[368198549,1751057440820,-460.0,0.00019178,2]
[368198550,1751057440830,-460.0,0.00019178,2]
[368198551,1751057440841,-460.0,0.00019178,2]
[368198552,1751057440855,-460.0,0.00019178,2]
[368198553,1751057440865,-466.93409376,0.00019178,2]
[368198554,1751057440877,-291.03252328,0.00019178,2]
[368198555,1751057440887,-460.0,0.00019178,2]
[368198556,1751057440899,-578.54,0.00019178,2]
[368198557,1751057440910,-697.99,0.00019178,2]
[368198558,1751057440921,-460.0,0.00019178,2]
[368198559,1751057440932,-460.0,0.00019178,2]
[368198560,1751057440943,-460.0,0.00019178,2]
[368198561,1751057440953,-460.0,0.00019178,2]
[368198562,1751057440962,-468.39,0.00019178,2]
[368198563,1751057441155,-460.0,0.00019178,2]
[368198564,1751057441165,-460.0,0.00019178,2]
[368198565,1751057441176,-460.0,0.00019178,2]
[368198566,1751057441185,-460.0,0.00019178,2]
[368198567,1751057441195,-460.0,0.00019178,2]
[368198568,1751057441204,-460.0,0.00019178,2]
[368198569,1751057441214,-802.01,0.00019178,2]
[368198570,1751057441227,-1109.21,0.00019178,2]
[368198571,1751057441237,-4979.54,0.00019178,2]
[368198572,1751057441247,-460.0,0.00019178,2]
[368198573,1751057441256,-1983.49,0.00019178,2]
[368198574,1751057441266,-460.0,0.00019178,2]
[368198575,1751057441275,-460.0,0.00019178,2]
[368198576,1751057441285,-460.0,0.00019178,2]
[368198577,1751057441294,-460.0,0.00019178,2]
[368198578,1751057441304,-460.0,0.00019178,2]
[368198579,1751057441314,-460.0,0.00019178,2]
[368198580,1751057441324,-460.0,0.00019178,2]
[368198581,1751057441333,-827.65,0.00019178,2]
[368198582,1751057441343,-460.0,0.00019178,2]
[368198583,1751057441353,-460.0,0.00019178,2]
[368198584,1751057441362,-460.0,0.00019178,2]
[368198585,1751057441372,-4721.75,0.00019178,2]
[368198586,1751057441381,-460.0,0.00019178,2]
[368198587,1751057441391,-593.36,0.00019178,2]
[368198588,1751057441401,-1506.67,0.00019178,2]
[368198589,1751057441411,-734.72,0.00019178,2]
[368198590,1751057441421,-460.0,0.00019178,2]
[368198591,1751057441431,-607.75,0.00019178,2]
[368198592,1751057441440,-460.0,0.00019178,2]
[368198593,1751057441450,-460.0,0.00019178,2]
[368198594,1751057441460,-702.85,0.00019178,2]
[368198595,1751057441470,-1276.3,0.00019178,2]
[368198596,1751057441479,-460.0,0.00019178,2]
[368198597,1751057441488,-678.03,0.00019178,2]
[368198598,1751057441497,-460.0,0.00019178,2]
[368198599,1751057441507,-634.71,0.00019178,2]
[368198600,1751057441516,-460.0,0.00019178,2]
[368198601,1751057441526,-1480.94,0.00019178,2]
[368198602,1751057441537,-460.0,0.00019178,2]
[368198603,1751057441547,-462.25624126,0.00019178,2]
[368198604,1751057441556,-460.0,0.00019178,2]
[368198605,1751057441566,-595.85,0.00019178,2]
[368198606,1751057441576,-460.0,0.00019178,2]
[368198607,1751057441586,-460.0,0.00019178,2]
[368198608,1751057441597,-460.0,0.00019178,2]
[368198609,1751057441607,-460.0,0.00019178,2]
[368198610,1751057441617,-460.0,0.00019178,2]
[368198611,1751057441627,-460.0,0.00019178,2]
[368198612,1751057441637,-551.29,0.00019178,2]
[368198613,1751057441647,-460.0,0.00019178,2]
[368198614,1751057441657,-2162.5,0.00019178,2]
[368198615,1751057441667,-460.0,0.00019178,2]
[368198616,1751057441676,-460.0,0.00019178,2]
[368198617,1751057441686,-460.0,0.00019178,2]
[368198618,1751057441696,-460.0,0.00019178,2]
[368198619,1751057441705,-855.24,0.00019178,2]
[368198620,1751057441715,-460.0,0.00019178,2]
[368198621,1751057441725,-644.2,0.00019178,2]
[368198622,1751057441734,-460.0,0.00019178,2]
[368198623,1751057441744,-460.0,0.00019178,2]
[368198624,1751057441753,-460.0,0.00019178,2]
[368198625,1751057441763,-706.72,0.00019178,2]
[368198626,1751057441772,-500.0,0.00019178,2]
[368198627,1751057441782,-476.41,0.00019178,2]
[368198628,1751057441791,-460.0,0.00019178,2]
[368198629,1751057441801,-460.0,0.00019178,2]
[368198630,1751057441810,-460.0,0.00019178,2]
[368198631,1751057441820,-502.54,0.00019178,2]
[368198632,1751057441830,-460.0,0.00019178,2]
[368198633,1751057441840,-460.0,0.00019178,2]
[368198634,1751057441851,-460.0,0.00019178,2]
[368198635,1751057441861,-1822.66,0.00019178,2]
[368198636,1751057441871,-3453.91,0.00019178,2]
[368198637,1751057441880,-460.0,0.00019178,2]
[368198638,1751057441891,-460.0,0.00019178,2]
[368198639,1751057441901,-778.4,0.00019178,2]
[368198640,1751057441910,-460.0,0.00019178,2]
[368198641,1751057441919,-460.0,0.00019178,2]
[368198642,1751057441930,-460.0,0.00019178,2]
[368198643,1751057441939,-460.0,0.00019178,2]
[368198644,1751057441949,-460.0,0.00019178,2]
[368198645,1751057441960,-389.13684585,0.00019178,2]
[368198646,1751057441970,-460.0,0.00019178,2]
[368198647,1751057441979,-460.0,0.00019178,2]
[368198648,1751057441990,-585.59,0.00019178,2]
[368198649,1751057441999,-503.42,0.00019178,2]
[368198650,1751057442009,-460.0,0.00019178,2]
[368198651,1751057442019,-461.55883868,0.00019178,2]
[368198652,1751057442028,-460.0,0.00019178,2]
[368198653,1751057442038,-1010.79,0.00019178,2]
[368198654,1751057442047,-658.37,0.00019178,2]
[368198655,1751057442057,-5350.64,0.00019178,2]
[368198656,1751057442067,-460.0,0.00019178,2]
[368198657,1751057442076,-460.0,0.00019178,2]
[368198658,1751057442086,-460.0,0.00019178,2]
[368198659,1751057442095,-460.0,0.00019178,2]
[368198660,1751057442104,-460.0,0.00019178,2]
[368198661,1751057442113,-460.0,0.00019178,2]
[368198662,1751057442123,-460.0,0.00019178,2]
[368198663,1751057442133,-659.18,0.00019178,2]
[368198664,1751057442142,-166.969606,0.00019178,2]
[368198665,1751057442152,-500.0,0.00019178,2]
[368198666,1751057442163,-159.2394861,0.00019288,2]
[368198667,1751057442172,-159.2394861,0.00019288,2]
[368198668,1751057442182,-318.4789722,0.00019288,2]
[368198669,1751057442191,-7136.4157538,0.00019329,2]
[368198670,1751057442201,-485.47675398,0.00019352,2]
[368198671,1751057442210,-460.0,0.00019452,2]
[368198672,1751057442219,-460.0,0.00019452,2]
[368198673,1751057442229,-460.0,0.00019452,2]
[368198674,1751057442239,-460.0,0.00019452,2]
[368198675,1751057442248,-460.0,0.00019452,2]
[368198676,1751057442257,-460.0,0.00019452,2]
[368198677,1751057442267,-460.0,0.00019452,2]
[368198678,1751057442276,-460.0,0.00019452,2]
[368198679,1751057442286,-460.0,0.00019452,2]
[368198680,1751057442295,-428.21,0.00019452,2]
[368198681,1751057442305,-481.31643801,0.00019452,2]
[368198682,1751057442314,-460.0,0.00019452,2]
[368198683,1751057442324,-460.0,0.00019452,2]
[368198684,1751057442334,-460.0,0.00019452,2]
[368198685,1751057442344,-383.08542497,0.00019452,2]
[368198686,1751057442354,-460.0,0.00019452,2]
[368198687,1751057442364,-385.24756272,0.00019452,2]
[368198688,1751057442373,-450.29785659,0.00019452,2]
[368198689,1751057442383,-460.0,0.00019452,2]
[368198690,1751057442393,-460.0,0.00019452,2]
[368198691,1751057442402,-460.0,0.00019452,2]
[368198692,1751057442411,-460.0,0.00019452,2]
[368198693,1751057442421,-460.0,0.00019452,2]
[368198694,1751057442430,-460.0,0.00019452,2]
[368198695,1751057442440,-484.52,0.00019452,2]
[368198696,1751057442449,-460.0,0.00019452,2]
[368198697,1751057442459,-460.0,0.00019452,2]
[368198698,1751057442468,-460.0,0.00019452,2]
[368198699,1751057442478,-460.0,0.00019452,2]
[368198700,1751057442488,-460.0,0.00019452,2]
[368198701,1751057442498,-460.0,0.00019452,2]
[368198702,1751057442508,-460.0,0.00019452,2]
[368198703,1751057442518,-460.0,0.00019452,2]
[368198704,1751057442527,-460.0,0.00019452,2]
[368198705,1751057442537,-460.0,0.00019452,2]
[368198706,1751057442547,-460.0,0.00019452,2]
[368198707,1751057442557,-460.0,0.00019452,2]
[368198708,1751057442566,-393.35129518,0.00019452,2]
[368198709,1751057442576,-460.0,0.00019452,2]
[368198710,1751057442585,-460.0,0.00019452,2]
[368198711,1751057442595,-460.0,0.00019452,2]
[368198712,1751057442604,-460.0,0.00019452,2]
[368198713,1751057442613,-460.0,0.00019452,2]
[368198714,1751057442622,-460.0,0.00019452,2]
[368198715,1751057442631,-775.32,0.00019452,2]
[368198716,1751057442640,-460.0,0.00019452,2]
[368198717,1751057442649,-460.0,0.00019452,2]
[368198718,1751057442659,-460.0,0.00019452,2]
[368198719,1751057442668,-460.0,0.00019452,2]
[368198720,1751057442676,-460.0,0.00019452,2]
[368198721,1751057442685,-460.0,0.00019452,2]
[368198722,1751057442694,-460.0,0.00019452,2]
[368198723,1751057442703,-460.0,0.00019452,2]
[368198724,1751057442712,-460.0,0.00019452,2]
[368198725,1751057442721,-184.71535336,0.00019452,2]
[368198726,1751057442731,-460.0,0.00019452,2]
[368198727,1751057442740,-460.0,0.00019452,2]
[368198728,1751057442749,-460.0,0.00019452,2]
[368198729,1751057442758,-460.0,0.00019452,2]
[368198730,1751057442768,-501.85,0.00019452,2]
[368198731,1751057442778,-560.37,0.00019452,2]
[368198732,1751057442788,-460.0,0.00019452,2]
[368198733,1751057442798,-460.0,0.00019452,2]
[368198734,1751057442809,-460.0,0.00019452,2]
[368198735,1751057442820,-328.8730505,0.00019452,2]
[368198736,1751057442831,-460.0,0.00019452,2]
[368198737,1751057442842,-460.0,0.00019452,2]
[368198738,1751057442856,-460.0,0.00019452,2]
[368198739,1751057442865,-460.0,0.00019452,2]
[368198740,1751057442875,-475.94843183,0.00019452,2]
[368198741,1751057442884,-460.0,0.00019452,2]
[368198742,1751057442894,-460.0,0.00019452,2]
[368198743,1751057442903,-460.0,0.00019452,2]
[368198744,1751057442913,-464.31380244,0.00019452,2]
[368198745,1751057442924,-460.0,0.00019452,2]
[368198746,1751057442937,-460.0,0.00019452,2]
[368198747,1751057442946,-460.0,0.00019452,2]
[368198748,1751057442955,-460.0,0.00019452,2]
[368198749,1751057442966,-460.0,0.00019452,2]
[368198750,1751057442978,-460.0,0.00019452,2]
[368198751,1751057442988,-460.0,0.00019452,2]
[368198752,1751057442997,-703.46,0.00019452,2]
[368198753,1751057443007,-460.0,0.00019452,2]
[368198754,1751057443017,-495.33,0.00019452,2]
[368198755,1751057443026,-460.0,0.00019452,2]
[368198756,1751057443035,-460.0,0.00019452,2]
[368198757,1751057443045,-745.75,0.00019452,2]
[368198758,1751057443055,-693.38,0.00019452,2]
[368198759,1751057443064,-460.0,0.00019452,2]
[368198760,1751057443074,-575.63,0.00019452,2]
[368198761,1751057443084,-2984.6,0.00019452,2]
[368198762,1751057443094,-460.0,0.00019452,2]
[368198763,1751057443104,-1038.52,0.00019452,2]
[368198764,1751057443114,-460.0,0.00019452,2]
[368198765,1751057443124,-460.0,0.00019452,2]
[368198766,1751057443134,-657.08,0.00019452,2]
[368198767,1751057443143,-997.22,0.00019452,2]
[368198768,1751057443152,-460.0,0.00019452,2]
[368198769,1751057443162,-483.84,0.00019452,2]
[368198770,1751057443171,-460.0,0.00019452,2]
[368198771,1751057443180,-1832.72,0.00019452,2]
[368198772,1751057443190,-460.0,0.00019452,2]
[368198773,1751057443200,-3210.91,0.00019452,2]
[368198774,1751057443209,-460.0,0.00019452,2]
[368198775,1751057443219,-460.0,0.00019452,2]
[368198776,1751057443229,-3005.55,0.00019452,2]
[368198779,1751057443238,-157.28162691,0.00019452,2]
[368198780,1751057443248,-469.7,0.00019452,2]
[368198781,1751057443258,-460.0,0.00019452,2]
[368198784,1751057443268,-545.24,0.00019452,2]
[368198785,1751057443277,-460.0,0.00019452,2]
[368198786,1751057443288,-523.16,0.00019452,2]
[368198787,1751057443297,-460.0,0.00019452,2]
[368198788,1751057443307,-460.0,0.00019452,2]
[368198789,1751057443318,-460.0,0.00019452,2]
[368198790,1751057443329,-500.17852613,0.00019452,2]
[368198791,1751057443339,-2973.32,0.00019452,2]
[368198792,1751057443349,-460.0,0.00019452,2]
[368198793,1751057443358,-460.0,0.00019452,2]
[368198794,1751057443368,-1517.0,0.00019452,2]
[368198795,1751057443378,-3468.68,0.00019452,2]
[368198796,1751057443388,-1615.82,0.00019452,2]
[368198797,1751057443398,-460.0,0.00019452,2]
[368198798,1751057443408,-460.0,0.00019452,2]
[368198799,1751057443418,-460.0,0.00019452,2]
[368198800,1751057443428,-460.0,0.00019452,2]
[368198801,1751057443438,-460.0,0.00019452,2]
[368198802,1751057443447,-578.54,0.00019452,2]
[368198803,1751057443457,-697.99,0.00019452,2]
[368198804,1751057443467,-460.0,0.00019452,2]
[368198805,1751057443476,-460.0,0.00019452,2]
[368198806,1751057443486,-468.39,0.00019452,2]
[368198807,1751057443495,-460.0,0.00019452,2]
[368198808,1751057443504,-460.0,0.00019452,2]
[368198809,1751057443513,-460.0,0.00019452,2]
[368198810,1751057443523,-460.0,0.00019452,2]
[368198811,1751057443532,-394.91559857,0.00019452,2]
[368198812,1751057443542,-802.01,0.00019452,2]
[368198813,1751057443595,-1109.21,0.00019452,2]
[368198814,1751057443605,-4979.54,0.00019452,2]
[368198815,1751057443616,-460.0,0.00019452,2]
[368198816,1751057443626,-1983.49,0.00019452,2]
[368198817,1751057443642,-460.0,0.00019452,2]
[368198818,1751057443652,-460.0,0.00019452,2]
[368198819,1751057443663,-460.0,0.00019452,2]
[368198820,1751057443672,-460.0,0.00019452,2]
[368198821,1751057443681,-460.0,0.00019452,2]
[368198823,1751057443690,-460.0,0.00019452,2]
[368198825,1751057443699,-827.65,0.00019452,2]
[368198827,1751057443707,-460.0,0.00019452,2]
[368198829,1751057443716,-460.0,0.00019452,2]
[368198831,1751057443725,-460.0,0.00019452,2]
[368198833,1751057443734,-4721.75,0.00019452,2]
[368198836,1751057443744,-460.0,0.00019452,2]
[368198838,1751057443753,-593.36,0.00019452,2]
[368198841,1751057443762,-1506.67,0.00019452,2]
[368198845,1751057443772,-734.72,0.00019452,2]
[368198850,1751057443781,-460.0,0.00019452,2]
[368198855,1751057443791,-607.75,0.00019452,2]
[368198858,1751057443801,-460.0,0.00019452,2]
[368198861,1751057443810,-460.0,0.00019452,2]
[368198863,1751057443820,-702.85,0.00019452,2]
[368198867,1751057443829,-1276.3,0.00019452,2]
[368198870,1751057443839,-460.0,0.00019452,2]
[368198873,1751057443850,-678.03,0.00019452,2]
[368198876,1751057443860,-460.0,0.00019452,2]
[368198879,1751057443869,-634.71,0.00019452,2]
[368198881,1751057443878,-442.9516155,0.00019452,2]
[368198882,1751057443886,-1480.94,0.00019452,2]
[368198884,1751057443897,-460.0,0.00019452,2]
[368198887,1751057443907,-595.85,0.00019452,2]
[368198888,1751057443916,-460.0,0.00019452,2]
[368198890,1751057443927,-460.0,0.00019452,2]
[368198892,1751057443936,-460.0,0.00019452,2]
[368198894,1751057443945,-460.0,0.00019452,2]
[368198896,1751057443954,-551.29,0.00019452,2]
[368198898,1751057443964,-460.0,0.00019452,2]
[368198901,1751057443973,-2162.5,0.00019452,2]
[368198903,1751057443982,-460.0,0.00019452,2]
[368198905,1751057443992,-460.0,0.00019452,2]
[368198907,1751057444002,-460.0,0.00019452,2]
[368198908,1751057444012,-855.24,0.00019452,2]
[368198911,1751057444021,-644.2,0.00019452,2]
[368198912,1751057444030,-460.0,0.00019452,2]
[368198915,1751057444039,-460.0,0.00019452,2]
[368198917,1751057444049,-706.72,0.00019452,2]
[368198918,1751057444058,-476.41,0.00019452,2]
[368198921,1751057444067,-500.0,0.00019452,2]
[368198922,1751057444077,-460.0,0.00019452,2]
[368198924,1751057444086,-453.12734487,0.00019452,2]
[368198926,1751057444095,-279.58246835,0.00019452,2]
[368198928,1751057444104,-502.54,0.00019452,2]
[368198930,1751057444114,-460.0,0.00019452,2]
[368198933,1751057444123,-255.53,0.00019452,2]
[368198935,1751057444133,-460.0,0.00019452,2]
[368198937,1751057444142,-1822.66,0.00019452,2]
[368198938,1751057444151,-3453.91,0.00019452,2]
[368198940,1751057444160,-460.0,0.00019452,2]
[368198943,1751057444170,-460.0,0.00019452,2]
[368198944,1751057444179,-778.4,0.00019452,2]
[368198946,1751057444188,-460.0,0.00019452,2]
[368198948,1751057444198,-460.0,0.00019452,2]
[368198950,1751057444207,-460.0,0.00019452,2]
[368198952,1751057444216,-460.0,0.00019452,2]
[368198954,1751057444225,-460.0,0.00019452,2]
[368198956,1751057444235,-585.59,0.00019452,2]
[368198958,1751057444244,-1010.79,0.00019452,2]
[368198960,1751057444253,-658.37,0.00019452,2]
[368198962,1751057444263,-5350.64,0.00019452,2]
[368198964,1751057444272,-460.0,0.00019452,2]
[368198966,1751057444282,-460.0,0.00019452,2]
[368198968,1751057444291,-460.0,0.00019452,2]
[368198970,1751057444301,-460.0,0.00019452,2]
[368198972,1751057444310,-460.0,0.00019452,2]
[368198974,1751057444319,-460.0,0.00019452,2]
[368198976,1751057444329,-659.18,0.00019452,2]
[368198978,1751057444338,-490.08351086,0.00019642,2]
[368198980,1751057444347,-460.0,0.00019726,2]
[368198982,1751057444359,-460.0,0.00019726,2]
[368198984,1751057444368,-390.62502656,0.00019726,2]
[368198986,1751057444377,-540.0,0.00019726,2]
[368198988,1751057444387,-460.0,0.00019726,2]
[368198990,1751057444396,-460.0,0.00019726,2]
[368198992,1751057444405,-460.0,0.00019726,2]
[368198994,1751057444415,-460.0,0.00019726,2]
[368198996,1751057444424,-502.35960236,0.00019726,2]
[368198998,1751057444433,-460.0,0.00019726,2]
[368199000,1751057444443,-460.0,0.00019726,2]
[368199002,1751057444452,-290.36690613,0.00019726,2]
[368199004,1751057444461,-460.0,0.00019726,2]
[368199006,1751057444470,-460.0,0.00019726,2]
[368199008,1751057444479,-460.0,0.00019726,2]
[368199010,1751057444489,-460.0,0.00019726,2]
[368199012,1751057444498,-484.52,0.00019726,2]
[368199014,1751057444507,-460.0,0.00019726,2]
[368199016,1751057444517,-460.0,0.00019726,2]
[368199018,1751057444527,-460.0,0.00019726,2]
[368199020,1751057444536,-460.0,0.00019726,2]
[368199022,1751057444545,-460.0,0.00019726,2]
[368199024,1751057444555,-460.0,0.00019726,2]
[368199026,1751057444564,-460.0,0.00019726,2]
[368199028,1751057444573,-460.0,0.00019726,2]
[368199030,1751057444582,-460.0,0.00019726,2]
[368199032,1751057444592,-379.4789932,0.00019726,2]
[368199034,1751057444601,-460.0,0.00019726,2]
[368199036,1751057444610,-460.0,0.00019726,2]
[368199038,1751057444619,-460.0,0.00019726,2]
[368199040,1751057444628,-460.0,0.00019726,2]
[368199042,1751057444637,-460.0,0.00019726,2]
[368199044,1751057444647,-460.0,0.00019726,2]
[368199046,1751057444656,-460.0,0.00019726,2]
[368199048,1751057444665,-775.32,0.00019726,2]
[368199050,1751057444675,-460.0,0.00019726,2]
[368199052,1751057444684,-460.0,0.00019726,2]
[368199054,1751057444693,-460.0,0.00019726,2]
[368199056,1751057444702,-460.0,0.00019726,2]
[368199058,1751057444711,-460.0,0.00019726,2]
[368199060,1751057444721,-460.0,0.00019726,2]
[368199062,1751057444730,-364.55236905,0.00019726,2]
[368199063,1751057444739,-460.0,0.00019726,2]
[368199066,1751057444749,-310.82914749,0.00019726,2]
[368199068,1751057444758,-460.0,0.00019726,2]
[368199070,1751057444768,-460.0,0.00019726,2]
[368199071,1751057444777,-460.0,0.00019726,2]
[368199073,1751057444786,-560.37,0.00019726,2]
[368199075,1751057444795,-460.0,0.00019726,2]
[368199077,1751057444805,-460.0,0.00019726,2]
[368199079,1751057444814,-460.0,0.00019726,2]
[368199081,1751057444823,-460.0,0.00019726,2]
[368199083,1751057444832,-460.0,0.00019726,2]
[368199086,1751057444842,-460.0,0.00019726,2]
[368199088,1751057444851,-220.2005835,0.00019726,2]
[368199089,1751057444861,-460.0,0.00019726,2]
[368199091,1751057444873,-460.0,0.00019726,2]
[368199093,1751057444882,-590.56351709,0.00019726,2]
[368199095,1751057444891,-460.0,0.00019726,2]
[368199097,1751057444900,-460.0,0.00019726,2]
[368199099,1751057444910,-526.26,0.00019726,2]
[368199101,1751057444919,-460.0,0.00019726,2]
[368199103,1751057444928,-703.46,0.00019726,2]
[368199105,1751057444938,-460.0,0.00019726,2]
[368199107,1751057444947,-495.33,0.00019726,2]
[368199109,1751057444956,-460.0,0.00019726,2]
[368199111,1751057444965,-745.75,0.00019726,2]
[368199113,1751057444975,-693.38,0.00019726,2]
[368199115,1751057444984,-421.82,0.00019726,2]
[368199117,1751057444994,-575.63,0.00019726,2]
[368199119,1751057445003,-2984.6,0.00019726,2]
[368199121,1751057445012,-460.0,0.00019726,2]
[368199123,1751057445022,-1038.52,0.00019726,2]
[368199125,1751057445031,-460.0,0.00019726,2]
[368199127,1751057445041,-460.0,0.00019726,2]
[368199129,1751057445050,-657.08,0.00019726,2]
[368199131,1751057445059,-997.22,0.00019726,2]
[368199133,1751057445068,-464.8452613,0.00019726,2]
[368199135,1751057445077,-483.84,0.00019726,2]
[368199137,1751057445087,-460.0,0.00019726,2]
[368199139,1751057445096,-1832.72,0.00019726,2]
[368199141,1751057445105,-460.0,0.00019726,2]
[368199143,1751057445115,-3210.91,0.00019726,2]
[368199145,1751057445124,-460.0,0.00019726,2]
[368199147,1751057445133,-460.0,0.00019726,2]
[368199149,1751057445143,-3005.55,0.00019726,2]
[368199151,1751057445152,-469.7,0.00019726,2]
[368199153,1751057445162,-460.0,0.00019726,2]
[368199155,1751057445171,-545.24,0.00019726,2]
[368199157,1751057445181,-244.05,0.00019726,2]
[368199159,1751057445191,-523.16,0.00019726,2]
[368199161,1751057445200,-460.0,0.00019726,2]
[368199163,1751057445210,-2973.32,0.00019726,2]
[368199165,1751057445220,-460.0,0.00019726,2]
[368199167,1751057445229,-318.66381283,0.00019726,2]
[368199169,1751057445239,-1517.0,0.00019726,2]
[368199171,1751057445248,-3468.68,0.00019726,2]
[368199173,1751057445257,-1615.82,0.00019726,2]
[368199175,1751057445268,-460.0,0.00019726,2]
[368199177,1751057445277,-460.0,0.00019726,2]
[368199179,1751057445287,-460.0,0.00019726,2]
[368199181,1751057445296,-401.29482588,0.00019726,2]
[368199183,1751057445306,-460.0,0.00019726,2]
[368199185,1751057445315,-578.54,0.00019726,2]
[368199187,1751057445325,-697.99,0.00019726,2]
[368199189,1751057445335,-460.0,0.00019726,2]
[368199191,1751057445345,-460.0,0.00019726,2]
[368199193,1751057445354,-468.39,0.00019726,2]
[368199195,1751057445364,-460.0,0.00019726,2]
[368199197,1751057445374,-460.0,0.00019726,2]
[368199199,1751057445383,-460.0,0.00019726,2]
[368199201,1751057445392,-460.0,0.00019726,2]
[368199203,1751057445402,-802.01,0.00019726,2]
[368199205,1751057445412,-1109.21,0.00019726,2]
[368199207,1751057445422,-4979.54,0.00019726,2]
[368199209,1751057445431,-460.0,0.00019726,2]
[368199211,1751057445441,-1983.49,0.00019726,2]
[368199213,1751057445450,-460.0,0.00019726,2]
[368199215,1751057445460,-460.0,0.00019726,2]
[368199217,1751057445469,-460.0,0.00019726,2]
[368199219,1751057445479,-460.0,0.00019726,2]
[368199221,1751057445489,-547.99322723,0.00019726,2]
[368199223,1751057445498,-460.0,0.00019726,2]
[368199225,1751057445508,-827.65,0.00019726,2]
[368199227,1751057445517,-460.0,0.00019726,2]
[368199229,1751057445527,-460.0,0.00019726,2]
[368199230,1751057445537,-491.32941475,0.00019726,2]
[368199231,1751057445547,-4721.75,0.00019726,2]
[368199232,1751057445556,-1506.67,0.00019726,2]
[368199233,1751057445566,-593.36,0.00019726,2]
[368199234,1751057445574,-734.72,0.00019726,2]
[368199235,1751057445584,-500.0,0.00019726,2]
[368199236,1751057445593,-607.75,0.00019726,2]
[368199237,1751057445602,-460.0,0.00019726,2]
[368199238,1751057445611,-460.0,0.00019726,2]
[368199239,1751057445621,-702.85,0.00019726,2]
[368199240,1751057445630,-1276.3,0.00019726,2]
[368199241,1751057445639,-460.0,0.00019726,2]
[368199242,1751057445648,-678.03,0.00019726,2]
[368199243,1751057445657,-460.0,0.00019726,2]
[368199244,1751057445667,-634.71,0.00019726,2]
[368199245,1751057445676,-1480.94,0.00019726,2]
[368199246,1751057445686,-257.47320662,0.00019726,2]
[368199247,1751057445695,-595.85,0.00019726,2]
[368199248,1751057445704,-460.0,0.00019726,2]
[368199250,1751057445714,-460.0,0.00019726,2]
[368199252,1751057445723,-460.0,0.00019726,2]
[368199254,1751057445733,-551.29,0.00019726,2]
[368199256,1751057445743,-2162.5,0.00019726,2]
[368199258,1751057445752,-460.0,0.00019726,2]